Cogmind - Beta 10.2 @@@ ROGUE MODE // 2021.01.03 @ 23:04:10 Player: CrossedViper Result: Destroyed by G-47 Trooper with Particle Gun Performance ------------- Evolutions (0) 0 Regions Visited (2) 400 Robots Destroyed (32) 160 Value Destroyed (779) 779 Prototype IDs (0) 0 Alien Tech Used (0) 0 Bonus (8) 8 TOTAL SCORE: 1347 Bonus ------- High Alert Combat Kills 8 Cogmind --------- Core Integrity 0/250 Matter 85/300 Energy 100/100 System Corruption 0% Temperature Cool (9) Movement Walking (150) Ox1 Location -10/Mines Parts ------- > --- POWER (1) -------- (None) > --- PROPULSION (2) --- Aluminum Leg Aluminum Leg > --- UTILITY (2) ------ Large Storage Unit Large Storage Unit > --- WEAPON (2) ------- Assault Rifle Light Assault Rifle > --- INVENTORY (16) --- Ion Engine Small Storage Unit Medium Laser Light Assault Rifle Grenade Launcher Peak State ------------ > --- POWER ------------ Ion Engine > --- PROPULSION ------- Aluminum Leg Aluminum Leg > --- UTILITY ---------- Small Storage Unit > --- WEAPON ----------- Small Laser Assault Rifle > --- INVENTORY -------- Ion Engine Light Treads Light Treads Wheel Compact Wheel Medium Laser [Rating: 6] Favorites ----------- Power Ion Engine Engine Ion Engine Propulsion Light Treads Treads Light Treads Leg Aluminum Leg Utility Small Storage Unit Storage Small Storage Unit Weapon Assault Rifle Energy Gun Small Laser Ballistic Gun Assault Rifle Launcher Grenade Launcher Build | -11 -10 -10 ------- Run | Scr Mat Min Slots Evolved . | . . . Power . | . . . Propulsion . | . . . Utility . | . . . Weapon . | . . . Parts Attached 15 | . 15 . Power . | . . . Engine . | . . . Core . | . . . Reactor . | . . . Propulsion 7 | . 7 . Treads 3 | . 3 . Leg 4 | . 4 . Wheel . | . . . Hover . | . . . Flight . | . . . Utility 2 | . 2 . Device . | . . . Storage 2 | . 2 . Processor . | . . . Hackware . | . . . Protection . | . . . Artifact . | . . . Weapon 6 | . 6 . Energy Gun . | . . . Energy Cannon . | . . . Ballistic Gun 2 | . 2 . Ballistic Cannon . | . . . Launcher 4 | . 4 . Special Weapon . | . . . Impact Weapon . | . . . Slashing Weapon . | . . . Piercing Weapon . | . . . Special Melee Weapon . | . . . Unidentified Prototypes . | . . . Parts Lost 6 | . 6 . Power 1 | . 1 . Propulsion 3 | . 3 . Utility . | . . . Weapon 2 | . 2 . Highest Loss Streak 4 | . 4 . Average Slot Usage (%) 77 | . 77 85 Engine 7 | . 7 . Treads 14 | . 15 . Leg 12 | . 12 28 Storage 18 | . 18 28 Energy Gun 6 | . 6 . Ballistic Gun 13 | . 12 28 Launcher 3 | . 4 . Naked Turns . | . . . Heaviest Build 35 | 12 35 35 Greatest Support 40 | 20 40 20 Greatest Overweight (x) 3 | . 3 1 Average Overweight (x) . | . . 1 Largest Inventory Capacity 16 | . 16 16 Average Capacity 9 | . 8 16 Most Carried 6 | . 6 5 Average Carried 4 | . 4 5 Final Capacity 16 | 6 16 16 Final Carried 6 | 6 5 5 Class Distribution -------------------- 100% | Mutant Dominant Class ---------------- Mutant | -10/Materials Mutant | -10/Mines Resources | -11 -10 -10 ----------- Run | Scr Mat Min Matter Collected 494 | 200 278 16 Remotely . | . . . Salvage Created 834 | . 801 33 Parts 53 | . 51 2 Haulers Intercepted 2 | . 2 . Recyclers Shooed 1 | . 1 . Parts Field Recycled . | . . . Retrieved Matter . | . . . Parts Self-Destructed . | . . . Prevented . | . . . Kills | -11 -10 -10 ------- Run | Scr Mat Min Combat Hostiles Destroyed 21 | . 20 1 Guns 11 | . 10 1 AOE 10 | . 10 . Classes Destroyed 7 | . 7 . Worker 3 | . 3 . Builder 2 | . 2 . Hauler 2 | . 2 . Operator 2 | . 2 . Watcher 2 | . 2 . Swarmer 3 | . 3 . Grunt 18 | . 17 1 Best Kill Streak 7 | . 7 1 Combat Bots Only 4 | . 4 1 Max Kills in Single Turn 3 | . 3 1 Gunslinging . | . . . Exploded 3 | . 3 . Melee . | . . . Uniques/NPCs Destroyed . | . . . Combat | -11 -10 -10 -------- Run | Scr Mat Min Damage Taken 858 | . 793 65 Core 259 | . 226 33 Absorbed by Shields . | . . . Core Remaining (%) 100 | 100 . . Volleys Fired 78 | . 74 4 Largest 2 | . 2 2 Hottest 60 | . 60 40 Shots Fired 136 | . 128 8 Gun 117 | . 109 8 Cannon . | . . . Launcher 19 | . 19 . Special . | . . . Kinetic 81 | . 73 8 Thermal 36 | . 36 . Explosive 19 | . 19 . Electromagnetic . | . . . Robot Hit Streak 8 | . 8 4 Robot Miss Streak 5 | . 5 1 Penetration Max . | . . . Secondary Targets 1 | . 1 . Max Gunslinging Chain 1 | . 1 . Shots Hit Robots 79 | . 73 6 Core Hits 56 | . 54 2 Critical Hits 1 | . 1 . Critical Kills . | . . . Critical Parts Destroyed 1 | . 1 . Melee Attacks . | . . . Impact . | . . . Slashing . | . . . Piercing . | . . . Sneak Attacks . | . . . Combat Hostiles . | . . . Follow-up Attacks . | . . . Damage Inflicted 2109 | . 2052 57 Guns 764 | . 707 57 Cannons . | . . . Explosions 1345 | . 1345 . Melee . | . . . Ramming . | . . . Kinetic 476 | . 419 57 Thermal 536 | . 536 . Explosive 1097 | . 1097 . Electromagnetic . | . . . Impact . | . . . Slashing . | . . . Piercing . | . . . Highest Corruption . | . . . Average Corruption . | . . . Corruption Purged . | . . . Overload Shots . | . . . Overflow Damage 221 | . 221 . Projectiles . | . . . Explosions 221 | . 221 . Melee . | . . . Knockbacks . | . . . Impact . | . . . Kinetic . | . . . Secondary . | . . . Self-Inflicted Damage 343 | . 343 . Shots 9 | . 9 . Rammed . | . . . Targets Rammed . | . . . Kicked . | . . . Crushed . | . . . Highest Temperature 42 | . 42 4 Average Temperature 15 | . 16 4 Received Heat Transfer 255 | . 219 36 Siege Activations . | . . . Robots Corrupted . | . . . Combat Hostiles . | . . . Parts Fried . | . . . Impact Corruptions . | . . . Robots Melted . | . . . Combat Hostiles . | . . . Parts Melted . | . . . Heat Transferred 800 | . 800 . Parts Sabotaged . | . . . Parts Stolen . | . . . Parts Stripped . | . . . Power Chain Reactions . | . . . Missiles Intercepted . | . . . Alert | -11 -10 -10 ------- Run | Scr Mat Min Peak Influence 406 | . 406 143 Initial 123 | . . 123 Average 204 | . 207 128 Maximum Alert Level 2 | . 2 . Low Security (%) 56 | . 54 100 Level 1 42 | . 44 . Level 2 . | . . . Level 3 . | . . . Level 4 . | . . . Level 5 . | . . . High Security . | . . . Max Security . | . . . Squads Dispatched 8 | . 8 . Investigation 2 | . 2 . Extermination . | . . . Reinforcement 6 | . 6 . Assault . | . . . Garrison . | . . . Intercept . | . . . Construction Impeded . | . . . Haulers Reinforced . | . . . Stealth | -11 -10 -10 --------- Run | Scr Mat Min Distress Signals 2 | . 2 . Communications Jammed . | . . . Distress Signals . | . . . Times Spotted 40 | . 38 2 Peak Tracking Total 4 | . 4 2 Tactical Retreats . | . . . Traps | -11 -10 -10 ------- Run | Scr Mat Min Traps Triggered 3 | . 3 . Indirectly . | . . . Trap Hack Attempts . | . . . Triggered . | . . . Disarmed . | . . . Reprogrammed . | . . . Reused . | . . . Traps Extracted . | . . . Installed . | . . . Triggered . | . . . Machines | -11 -10 -10 ---------- Run | Scr Mat Min Machines Disabled 3 | . 3 . Max in Single Turn 3 | . 3 . Machines Sabotaged . | . . . Garrisons Compromised . | . . . Overloaded Fab Kills . | . . . Fab Network Shutdowns . | . . . Hacking | -11 -10 -10 --------- Run | Scr Mat Min Machines Accessed 1 | . 1 . Terminals 1 | . 1 . Fabricators . | . . . Repair Stations . | . . . Recycling Units . | . . . Scanalyzers . | . . . Garrison Access . | . . . Total Hacks 1 | . 1 . Successful 1 | . 1 . Failed . | . . . Catastrophic . | . . . Database Lockouts . | . . . Manual 2 | . 2 . Terminals 1 | . 1 . Fabricators . | . . . Repair Stations . | . . . Recycling Units . | . . . Scanalyzers . | . . . Garrison Access . | . . . Terminal Hacks . | . . . Fabricator Hacks . | . . . Repair Station Hacks . | . . . Recycling Unit Hacks . | . . . Scanalyzer . | . . . Garrison Access Hacks . | . . . Unauthorized Hacks 1 | . 1 . Terminals 1 | . 1 . Track 1 | . 1 . Fabricators . | . . . Repair Stations . | . . . Recycling Units . | . . . Scanalyzers . | . . . Garrison Access . | . . . Data Cores Recovered . | . . . Used . | . . . Hacking Detections 1 | . 1 . Full Trace Events . | . . . Feedback Events . | . . . Feedback Blocked . | . . . Robot Schematics Acquired . | . . . Robots Built . | . . . Matter . | . . . Time . | . . . Total Robot Build Rating . | . . . Part Schematics Acquired . | . . . Parts Built . | . . . Matter . | . . . Time . | . . . Total Part Build Rating . | . . . Parts Repaired . | . . . Time . | . . . Parts Recycled . | . . . Recycled Matter . | . . . Retrieved Matter . | . . . Retrieved Components . | . . . Parts Scanalyzed . | . . . Part Schematics Acquired . | . . . Parts Damaged . | . . . Bothacking | -11 -10 -10 ------------ Run | Scr Mat Min Used RIF Installer . | . . . Robots Hacked . | . . . Non-combat . | . . . Combat . | . . . Robot Hacks Applied . | . . . Relay Couplers Released . | . . . Robots Rewired . | . . . Allies Hacked . | . . . Hacks Repelled . | . . . Allies | -11 -10 -10 -------- Run | Scr Mat Min Total Allies . | . . . Largest Group . | . . . Highest-Rated Group . | . . . Highest-Rated Ally . | . . . Total Orders . | . . . Ally Attacks . | . . . Total Damage . | . . . Kills . | . . . Allies Corrupted . | . . . Allies Melted . | . . . Intel | -11 -10 -10 ------- Run | Scr Mat Min Robot Analysis Total . | . . . Derelict Logs Recovered . | . . . Drone Launches . | . . . Drone Recoveries . | . . . Exploration | -11 -10 -10 ------------- Run | Scr Mat Min Turns Passed 975 | . 937 38 Spaces Moved 474 | 1 458 15 Core 8 | . 8 . Treads 217 | . 217 . Legs 249 | 1 233 15 Wheels . | . . . Hover . | . . . Flight . | . . . Fastest Speed 100 | 120 100 150 Average Speed 148 | 120 148 150 Slowest Speed 210 | 120 210 150 Overloaded Moves . | . . . Propulsion Burnouts . | . . . Robots Hopped . | . . . Cave-ins Triggered . | . . . Exploration Rate (%) 32 | 1 90 6 Regions Visited 2 Branch Regions 1 Pre-discovered Areas . | . . . Known Exits Taken . | . . . Unknown Exits Taken 2 | 1 1 . Scrap Searched 1 | . . 1 Spaces Dug . | . . . Terrain Destroyed 127 | . 127 . Melee . | . . . Projectile . | . . . AOE 127 | . 127 . Terrain Rammed . | . . . Walls Destroyed . | . . . Machines Disabled . | . . . Actions | -11 -10 -10 --------- Run | Scr Mat Min Total 614 | . 590 24 Wait 35 | . 30 5 Move 472 | . 457 15 Hop . | . . . Pick Up 6 | . 6 . Fast Attach 7 | . 7 . Attach 5 | . 5 . Detach 1 | . 1 . Swap 3 | . 3 . Drop 7 | . 7 . Fire 78 | . 74 4 Melee . | . . . Ram . | . . . Kick . | . . . Crush . | . . . Escape Stasis . | . . . Rewire . | . . . Trap . | . . . Miscellaneous . | . . . Route ------- -11/Scrapyard -10/Materials (discovered 5 exits: [*Mat x3] / [*Min x2]) -10/Mines (discovered 1 exit: [*Mat]) History --------- Turn | Location | Event 1 | -11/Scrapyard | Discovered new exit (range 0) 1 | -11/Scrapyard | Entered Materials 151 | -10/Materials | Discovered new exit (range 6) 310 | -10/Materials | Build established: Mutant 491 | -10/Materials | Discovered new exit (range 6) 564 | -10/Materials | Lost 4 parts (1p2n1w) 599 | -10/Materials | Discovered new exit (range 15) 632 | -10/Materials | Core integrity fell below 50% 679 | -10/Materials | Discovered new exit (range 8) 821 | -10/Materials | Discovered new exit (range 15) 824 | -10/Materials | Core integrity fell below 20% 938 | -10/Materials | Entered Mines 943 | -10/Mines | Discovered new exit (range 10) 976 | -10/Mines | Destroyed by G-47 Trooper with Particle Gun Last Messages --------------- 00818_ Acquired 49 matter. 00821_ EXIT=FOUND 00834_ G-34 Mercenary destroyed. 00848_ R-06 Scavenger collects Ion Engine. 00853_ R-06 Scavenger collects Aluminum Leg. 00856_ R-06 Scavenger collects Sml. Laser. LOCATION=UNKNOWN GOAL=ESCAPE Something is scanning the area. 00943_ EXIT=FOUND 00946_ Searching scrap... 00946_ Found Sensor Array. 00946_ Found Med. Storage Unit. 00946_ Found 16 Matter. 00947_ Acquired 16 matter. 00960_ K-01 Serf collects debris. 00966_ G-34 Mercenary destroyed. 00967_ R-06 Scavenger collects Aluminum Leg. 00971_ R-06 Scavenger collects Ion Engine. 00972_ K-01 Serf collects debris. Map ----- +----------------------------------------------------+ | ??????????????????????????????? | | ??????????????????????????????? | | ??????????????????????????????? | | ??????????????????????????????? | | ??????????????????????????????? | | ??????????????????????????????? | | ??????????????????????????????? | | ??????????????????????????????? | | ??????????????????????????????? | | ???????????????????#??????????? | | ???????????????????# ?????????? | | ???????????????????? ?????????? | | ???????????????????? ????????? | | ????????????????????? ????????? | | ????????????????????? #???????? | | ?????????????????????? #??????? | | ?????????????????????? ####??? | | ??????????????????????? ##?? | | ??????????????????????? #?? | | ???????????????????????? < ??? | | ???????????????????????? k #??? | | ????????????????????????#k #??? | | ????????????????????????#rg#??? | | ????????????????????????#u #??? | | ????????????????????????# #??? | | ????????????????????????#@ #??? | | ????????????????????????# #??? | | ?????????????????????#### ##?? | | ?????????????????##### ! #?? | | ????????????????## !$!!#?? | | ??????????????### ! ! #?? | | ??????????????# ! ! #?? | | ?????????????# ! ! #?? | | ?????????????# #?? | | ?????????????## ## ########?? | | ??????????????#??####?????????? | | ??????????????????????????????? | | ??????????????????????????????? | | ??????????????????????????????? | | ??????????????????????????????? | | | | | | | | | | | | | | | | | | | | | +----------------------------------------------------+ Best States ------------- Heat Dissipation 25 Energy Generation 10 Energy Capacity 250 Matter Stores 300 Matter Capacity 300 Sight Range 16 Terrain Scan Density 10 Evasion (%) 40 Recoil Reduction 2 Item Schematics ----------------- None Robot Schematics ------------------ None Fabricated ------------ Nothing Alien Tech Used ----------------- None Achievements -------------- None Challenges ------------ None Game ------ Seed LongswordBlastInterrupter Manual? 0 Play Time 00:04:56 Cumulative 213.1 hours Start 2021.01.03 @ 22:58:16 End 2021.01.03 @ 23:04:10 Sessions 1 Manual Loads 0 Difficulty Rogue Special Mode None Game No. 198 Rogue 191 Adventurer 0 Explorer 7 Win Type - Total 5 Types 1/0/4/0/0/0/0/0/0 Lore% 68 Gallery% 90 Achievement% 69 Wizard Run 0 Options --------- ASCII 0 Keyboard 0 Movement Mouse Keybinds 0 Fullscreen 1 Font 18/X11 Map View 76x50 Tactical HUD 1 Map Filters NONE Filters NONE Steam 1 RUN: a99000ed-d2d5-4669-8a78-42e0adb3afaa